bitfinex/quotes_BTCUSD_20250414
["timestamp","ask_amount","ask_price","bid_price","bid_amount"]
[1744650817619,0.0495,84342.0,84341.0,2e-07]
[1744650817978,0.288629,84342.0,84341.0,2e-07]
[1744650818121,0.243129,84342.0,84341.0,2e-07]
[1744650818532,0.239129,84342.0,84341.0,2e-07]
[1744650818742,0.011855,84347.0,84341.0,2e-07]
[1744650818743,0.011856,84345.0,84341.0,2e-07]
[1744650818947,0.24898,84344.0,84341.0,2e-07]
[1744650819146,0.006,84342.0,84341.0,0.2371322]
[1744650819347,0.006,84342.0,84341.0,0.35797374]
[1744650820851,0.002,84342.0,84341.0,0.35797374]
[1744650821318,0.248962,84351.0,84346.0,0.011855]
[1744650821544,0.248962,84351.0,84347.0,0.35795554]
[1744650821757,0.248953,84353.0,84349.0,0.011855]
[1744650821975,0.248953,84353.0,84350.0,0.12084154]
[1744650822682,0.011854,84353.0,84350.0,0.36980354]
[1744650822939,0.248953,84353.0,84350.0,0.36980354]
[1744650823085,0.237104,84351.0,84350.0,0.12084154]
[1744650823694,0.240104,84351.0,84350.0,0.12084154]
[1744650823899,0.237104,84351.0,84350.0,0.12084154]
[1744650824105,0.240104,84351.0,84350.0,0.12084154]
[1744650824311,0.011856,84344.0,84340.0,0.011856]
[1744650824551,0.011855,84350.0,84346.0,0.237117]
[1744650824552,0.011855,84349.0,84346.0,0.237117]
[1744650824754,0.248963,84350.0,84347.0,0.12084154]
[1744650824932,0.23711,84349.0,84347.0,0.12084154]
[1744650825848,0.003,84351.0,84349.0,0.23711]
[1744650826048,0.003,84351.0,84350.0,0.237107]
[1744650826222,6.55e-05,84354.0,84353.0,0.237098]
[1744650826865,6.55e-05,84354.0,84353.0,0.35793954]
[1744650827847,0.0020655,84354.0,84353.0,0.35793954]
[1744650829599,0.0030655,84354.0,84353.0,0.35793954]
[1744650830620,0.0010655,84354.0,84353.0,0.35793954]
[1744650830821,0.0020655,84354.0,84353.0,0.35793954]
[1744650831022,0.0010655,84354.0,84353.0,0.35793954]
[1744650831624,0.0010655,84354.0,84353.0,0.37248039]
[1744650832644,6.55e-05,84354.0,84353.0,0.37248039]
[1744650833877,5e-07,84354.0,84353.0,0.71248039]
[1744650834023,5e-07,84354.0,84353.0,1.17018039]
[1744650835799,5e-07,84354.0,84353.0,1.17418039]
[1744650835999,5e-07,84354.0,84353.0,1.17718039]
[1744650836155,5e-07,84354.0,84353.0,1.12858039]
[1744650836374,5e-07,84354.0,84353.0,1.13358039]
[1744650836581,5e-07,84354.0,84353.0,1.14262781]
[1744650840902,5e-07,84354.0,84353.0,1.11903954]
[1744650841057,5e-07,84354.0,84353.0,1.27711954]
[1744650842851,5e-07,84354.0,84353.0,1.29166039]
[1744650844904,5e-07,84354.0,84353.0,1.27711954]
[1744650845130,5e-07,84354.0,84353.0,1.04002154]
[1744650845312,5e-07,84354.0,84353.0,0.93711954]
[1744650846283,5e-07,84354.0,84353.0,0.93311954]
[1744650847689,5e-07,84354.0,84353.0,0.93511954]
[1744650847891,5e-07,84354.0,84353.0,0.93011954]
[1744650849314,5e-07,84354.0,84353.0,0.93311954]
[1744650849514,5e-07,84354.0,84353.0,1.28766039]
[1744650863264,5e-07,84354.0,84353.0,1.27311954]
[1744650865114,5e-07,84354.0,84353.0,1.28766039]
[1744650873130,5e-07,84354.0,84353.0,1.28566039]
[1744650873690,5e-07,84354.0,84353.0,1.29066039]
[1744650873936,5e-07,84354.0,84353.0,1.28266039]
[1744650874234,5e-07,84354.0,84353.0,1.29066039]
[1744650882496,5e-07,84354.0,84353.0,1.13258039]
[1744650882697,5e-07,84354.0,84353.0,0.77803954]
[1744650883072,5e-07,84354.0,84353.0,0.54094154]
[1744650883257,0.0476005,84354.0,84353.0,0.77803954]
[1744650883417,0.0476005,84354.0,84353.0,0.77503954]
[1744650883618,0.0476005,84354.0,84353.0,0.77003954]
[1744650883817,0.0476005,84354.0,84353.0,0.77203954]
[1744650884033,0.0476005,84354.0,84353.0,0.77303954]
[1744650884864,0.0476005,84354.0,84353.0,0.53594154]
[1744650885162,0.0476005,84354.0,84353.0,0.77303954]
[1744650887805,0.0476005,84354.0,84353.0,0.36093954]
[1744650889050,5e-07,84354.0,84353.0,0.36093954]
[1744650902150,5e-07,84354.0,84353.0,0.37548039]
[1744650902756,5e-07,84354.0,84353.0,0.36093954]
[1744650902964,0.3338965,84354.0,84353.0,0.003]
[1744650903365,0.3338965,84354.0,84353.0,0.001]
[1744650903817,0.237117,84347.0,84344.0,0.011856]
[1744650904031,0.237115,84347.0,84344.0,0.36982054]
[1744650904236,0.24897,84348.0,84344.0,0.36982054]
[1744650904506,0.248959,84351.0,84347.0,0.237115]
[1744650904670,0.248967,84349.0,84346.0,0.248973]
[1744650904874,0.248967,84349.0,84345.0,0.237118]
[1744650905090,0.237114,84348.0,84345.0,0.237118]
[1744650905293,0.011855,84350.0,84347.0,0.237115]
[1744650905498,0.23711,84349.0,84346.0,0.011855]
[1744650905655,0.248962,84350.0,84346.0,0.248972]
[1744650906080,0.0968005,84354.0,84353.0,0.237098]
[1744650906264,0.0968005,84354.0,84347.0,0.13269654]
[1744650906468,0.1086545,84354.0,84351.0,0.237103]
[1744650906743,0.1086545,84354.0,84348.0,0.011855]
[1744650907002,0.296254,84353.0,84352.0,0.12084154]
[1744650907211,0.296254,84353.0,84340.0,0.0123688]
[1744650907212,0.0473,84343.0,84341.0,0.2371302]
[1744650907378,0.0473,84343.0,84342.0,0.35797054]
[1744650909617,0.0473,84343.0,84342.0,0.35897054]
[1744650910260,0.0473,84343.0,84342.0,0.12184154]
[1744650910481,0.284426,84343.0,84342.0,0.001]
[1744650911322,0.333426,84343.0,84342.0,0.001]
[1744650911828,0.237129,84342.0,84341.0,2e-07]
[1744650912791,0.237129,84342.0,84312.0,0.0008432]
[1744650912792,0.330377,84325.0,84312.0,0.0008432]
[1744650913033,0.330377,84325.0,84317.0,0.2499028]
[1744650913276,0.330377,84325.0,84317.0,0.0008438]
[1744650913514,0.330377,84325.0,84318.0,0.011859]
[1744650913745,0.330377,84325.0,84317.0,0.0008438]
[1744650914176,0.330377,84325.0,84324.0,0.0009088]
[1744650915649,0.331377,84325.0,84324.0,0.0009088]
[1744650918879,0.0942,84325.0,84324.0,0.2380888]
[1744650919213,0.331377,84325.0,84324.0,0.0009088]
[1744650923513,0.4143207,84325.0,84324.0,0.0009088]
[1744650924125,0.331377,84325.0,84324.0,0.0009088]
[1744650928925,0.0942,84325.0,84324.0,0.0009088]
[1744650929384,0.331377,84325.0,84324.0,0.0009088]
[1744650929732,0.0942,84325.0,84324.0,0.2380888]
[1744650929936,0.331377,84325.0,84324.0,0.0009088]
[1744650930883,0.0942,84325.0,84324.0,0.2380888]
[1744650931611,0.001,84325.0,84324.0,0.2380888]
[1744650932163,0.001,84325.0,84324.0,0.0009088]
[1744650932520,0.24712961,84325.0,84324.0,0.0009088]
[1744650932713,0.238177,84325.0,84324.0,0.0009088]
[1744650932919,0.24712961,84325.0,84324.0,0.0009088]
[1744650936173,0.00995261,84325.0,84324.0,0.35893034]
[1744650936567,0.001,84325.0,84324.0,0.35893034]
[1744650937250,0.0466,84336.0,84335.0,0.237149]
[1744650937428,0.0466,84336.0,84334.0,0.237152]
[1744650937637,0.05559237,84336.0,84334.0,0.237152]
[1744650938160,0.00899237,84336.0,84335.0,0.237149]
[1744650938628,0.237133,84341.0,84337.0,0.011857]
[1744650938873,0.20578,84342.0,84341.0,0.237132]
[1744650939091,0.0489,84345.0,84342.0,0.011856]
[1744650939322,0.0489,84345.0,84342.0,0.13269754]
[1744650939778,0.011857,84338.0,84334.0,0.011857]
[1744650940032,0.011857,84338.0,84336.0,0.237145]
[1744650940265,0.23716,84331.0,84326.0,0.011858]
[1744650940471,0.237177,84325.0,84312.0,0.1583232]
[1744650940676,0.237177,84325.0,84319.0,0.000844]
[1744650940888,0.282177,84325.0,84319.0,0.000844]
[1744650942069,0.282177,84325.0,84324.0,0.0019088]
[1744650943676,0.29116021,84325.0,84324.0,0.0019088]
[1744650944052,0.29116021,84325.0,84324.0,0.0009088]
[1744650944349,0.29216021,84325.0,84324.0,0.0009088]
[1744650944557,0.01098321,84325.0,84324.0,0.2380888]
[1744650945162,0.24816021,84325.0,84324.0,0.0009088]
[1744650945409,0.01098321,84325.0,84324.0,0.0009088]
[1744650946063,0.00998321,84325.0,84324.0,0.0009088]
[1744650946261,0.01098321,84325.0,84324.0,0.0009088]
[1744650946463,0.01098321,84325.0,84324.0,0.35893034]
[1744650946835,0.002,84325.0,84324.0,0.35893034]
[1744650947061,0.001,84325.0,84324.0,0.35893034]
[1744650947289,0.002,84325.0,84324.0,0.35893034]
[1744650947651,0.001,84325.0,84324.0,0.35893034]
[1744650947882,0.237177,84325.0,84324.0,0.0009088]
[1744650948124,0.24617298,84325.0,84324.0,0.0019088]
[1744650949745,0.35042908,84325.0,84324.0,0.0019088]
[1744650949959,0.24617298,84325.0,84324.0,0.0019088]
[1744650950826,0.24617298,84325.0,84324.0,0.0009088]
[1744650951224,0.24717298,84325.0,84324.0,0.0009088]
[1744650952823,0.24817298,84325.0,84324.0,0.0009088]
[1744650956295,0.27035775,84325.0,84324.0,0.0009088]
[1744650957338,0.24817298,84325.0,84324.0,0.0009088]
[1744650958202,0.27035766,84325.0,84324.0,0.0009088]
[1744650960611,0.13985523,84325.0,84321.0,8e-07]
[1744650960809,0.13985523,84325.0,84321.0,6e-08]
[1744650960810,0.589045,84322.0,84321.0,6e-08]
[1744650961016,0.76756649,84322.0,84321.0,6e-08]
[1744650961191,0.91435117,84322.0,84321.0,6e-08]
[1744650961393,0.78975117,84322.0,84321.0,6e-08]
[1744650961955,0.64672495,84322.0,84321.0,6e-08]
[1744650962245,0.88829497,84322.0,84321.0,6e-08]
[1744650962450,0.93749497,84322.0,84321.0,6e-08]
[1744650962678,0.93749497,84322.0,84311.0,7.6e-07]
[1744650962679,0.237214,84312.0,84311.0,7.6e-07]
[1744650962847,0.334614,84312.0,84311.0,7.6e-07]
[1744650963068,0.46415836,84312.0,84311.0,7.6e-07]
[1744650963269,0.46415836,84312.0,84294.0,0.0008442]
[1744650963270,0.332561,84295.0,84294.0,0.0008442]
[1744650963652,0.34110724,84295.0,84294.0,0.0008442]
[1744650964651,0.34210724,84295.0,84294.0,0.0008442]
[1744650964832,0.34217273,84295.0,84294.0,0.0008442]
[1744650965565,0.24687273,84295.0,84294.0,0.0008442]
[1744650965719,0.24887273,84295.0,84294.0,0.0008442]
[1744650966782,0.29737273,84295.0,84294.0,0.0008442]
[1744650967332,0.29737273,84295.0,84294.0,2e-07]
[1744650967764,0.34557273,84295.0,84294.0,2e-07]
[1744650968192,0.36669098,84295.0,84294.0,2e-07]
[1744650968575,0.34257273,84295.0,84294.0,2e-07]
[1744650968774,0.36468045,84295.0,84294.0,2e-07]
[1744650969034,0.36668045,84295.0,84294.0,2e-07]
[1744650969258,0.48752199,84295.0,84294.0,2e-07]
[1744650969473,0.48852199,84295.0,84294.0,2e-07]
[1744650970012,0.237309,84278.0,84277.0,0.0004221]
[1744650970212,0.237309,84278.0,84267.0,8e-05]
[1744650970213,0.23615503,84268.0,84267.0,8e-05]
[1744650970414,0.41504575,84268.0,84267.0,8e-05]
[1744650971062,0.46274575,84268.0,84267.0,1e-06]
[1744650971612,0.46279178,84268.0,84267.0,1e-06]
[1744650972591,0.81166346,84268.0,84267.0,1e-06]
[1744650972794,1.22456346,84268.0,84267.0,1e-06]
[1744650973234,0.675054,84262.0,84261.0,1e-06]
[1744650973339,0.93116487,84262.0,84261.0,1e-06]
[1744650973548,0.98725219,84262.0,84261.0,1e-06]
[1744650973995,0.98725219,84262.0,84261.0,2e-07]
[1744650974373,0.237416,84240.0,84239.0,0.0008442]
[1744650974557,0.45195754,84240.0,84239.0,0.0008442]
[1744650974760,0.61742147,84240.0,84239.0,0.0008442]
[1744650975057,0.26806318,84240.0,84239.0,0.0008442]
[1744650975283,0.16546393,84240.0,84239.0,0.0008442]
[1744650975684,0.16550994,84240.0,84239.0,0.0008442]
[1744650976452,0.00918994,84240.0,84239.0,0.2382632]
[1744650976672,0.00918994,84240.0,84239.0,0.0008442]
[1744650976884,0.00204601,84240.0,84239.0,0.2382632]
[1744650977283,4.601e-05,84240.0,84239.0,0.35910474]
[1744650977486,4.601e-05,84240.0,84239.0,0.37364559]
[1744650977603,4.601e-05,84240.0,84239.0,0.87200559]
[1744650977604,1e-08,84240.0,84239.0,0.87200559]
[1744650977809,0.057364,84282.0,84278.0,0.011865]
[1744650978017,0.169224,84284.0,84279.0,0.011865]
[1744650978223,0.011863,84290.0,84276.0,0.011865]
[1744650978224,0.00680046,84283.0,84276.0,0.011865]
[1744650978428,0.249158,84284.0,84281.0,0.011865]
[1744650978670,0.05566873,84288.0,84284.0,0.011864]
[1744650978825,0.011865,84281.0,84277.0,0.13270654]
[1744650979020,0.249191,84273.0,84270.0,0.01246091]
[1744650979226,0.011866,84274.0,84271.0,0.12084154]
[1744650979588,0.011866,84271.0,84268.0,0.011866]
[1744650979764,0.011866,84271.0,84268.0,0.24966333]
[1744650980396,0.237333,84270.0,84268.0,0.00046133]
[1744650980944,0.237333,84270.0,84268.0,0.00146133]
[1744650981471,0.011865,84275.0,84268.0,0.00146133]
[1744650981692,0.249196,84271.0,84268.0,0.00146133]
[1744650981997,0.237333,84270.0,84268.0,0.00046133]
[1744650982397,0.239333,84270.0,84268.0,0.00046133]
[1744650983017,0.237333,84270.0,84268.0,0.00046133]
[1744650983130,0.239333,84270.0,84268.0,0.00046133]
[1744650983538,0.240333,84270.0,84268.0,0.00046133]
[1744650985903,0.003,84270.0,84268.0,0.00046133]
[1744650986360,0.240332,84270.0,84268.0,0.00046133]
[1744650986922,0.237335,84269.0,84268.0,0.00046133]
[1744650988451,0.0057111,84269.0,84268.0,0.00046133]
[1744650988662,0.0057111,84269.0,84268.0,0.23779833]
[1744650988865,0.0057111,84269.0,84268.0,0.00046133]
[1744650989078,0.237335,84269.0,84268.0,0.00046133]
[1744650989505,0.0067111,84269.0,84268.0,0.00046133]
[1744650989919,0.0057111,84269.0,84268.0,0.23779933]
[1744650990290,0.011866,84271.0,84268.0,0.00046133]
[1744650990434,0.24919,84273.0,84269.0,0.011866]
[1744650990639,0.23733,84271.0,84269.0,0.249201]
[1744650990902,0.237325,84273.0,84270.0,0.011866]
[1744650991077,0.237327,84272.0,84269.0,0.011866]
[1744650991284,0.237335,84269.0,84268.0,0.00046133]
[1744650992490,0.237333,84270.0,84268.0,0.00046133]
[1744650992696,0.237335,84269.0,84268.0,0.00046133]
[1744650999208,0.237284,84287.0,84275.0,0.011865]
[1744650999468,0.237299,84282.0,84277.0,0.011865]
[1744650999699,0.011865,84280.0,84276.0,0.237313]
[1744650999933,0.011866,84273.0,84269.0,0.011866]
[1744651000155,0.237326,84274.0,84270.0,0.37003954]
[1744651000437,0.011865,84276.0,84273.0,0.011866]
[1744651000656,0.011866,84274.0,84270.0,0.13270754]
[1744651000913,0.011866,84274.0,84272.0,0.237325]
[1744651001148,0.011865,84275.0,84272.0,0.12084154]
[1744651001619,0.011865,84275.0,84272.0,0.37003154]
[1744651001874,0.011865,84278.0,84274.0,0.011866]
[1744651002135,0.237323,84273.0,84272.0,0.12084154]
[1744651002394,0.237333,84270.0,84265.0,0.011867]
[1744651002649,0.237333,84270.0,84267.0,0.011867]
[1744651002907,0.237333,84270.0,84266.0,0.249209]
[1744651003178,0.237333,84270.0,84263.0,0.23735]
[1744651003179,0.237335,84269.0,84260.0,0.237355]
[1744651003437,0.237335,84269.0,84258.0,0.011868]
[1744651003688,0.24219135,84269.0,84258.0,0.011868]
[1744651004322,0.24219135,84269.0,84259.0,0.011868]
[1744651004549,0.24219135,84269.0,84258.0,0.011868]
[1744651004783,0.24219135,84269.0,84252.0,0.011869]
[1744651005008,0.24219135,84269.0,84250.0,0.011869]
[1744651005227,0.24219135,84269.0,84255.0,0.011868]
[1744651005507,0.24219135,84269.0,84256.0,0.011868]
[1744651005754,0.24219135,84269.0,84264.0,0.011867]
[1744651005973,0.24219135,84269.0,84259.0,0.237361]
[1744651006217,0.24319135,84269.0,84256.0,0.249239]
[1744651006438,0.24319135,84269.0,84254.0,0.249242]
[1744651006662,0.24319135,84269.0,84256.0,0.011868]
[1744651006875,0.24319135,84269.0,84255.0,0.249241]
[1744651007124,0.24319135,84269.0,84256.0,0.011868]
[1744651007371,0.24319135,84269.0,84239.0,0.0008442]
[1744651007372,0.237416,84240.0,84239.0,0.0008442]
[1744651007820,0.24210507,84240.0,84239.0,0.0008442]
[1744651008917,0.2425664,84240.0,84239.0,0.0008442]
[1744651009916,0.2445664,84240.0,84239.0,0.0008442]
[1744651010118,0.2465664,84240.0,84239.0,0.0008442]
[1744651010362,0.23743,84235.0,84234.0,3e-07]
[1744651010715,0.24204373,84235.0,84234.0,3e-07]
[1744651011386,0.24204373,84235.0,84200.0,0.0459]
[1744651011387,0.237524,84202.0,84201.0,3e-07]
[1744651011723,0.24418755,84202.0,84201.0,3e-07]
[1744651012149,0.237524,84202.0,84201.0,3e-07]
[1744651012554,0.23798504,84202.0,84201.0,3e-07]
[1744651012758,0.38016851,84202.0,84201.0,3e-07]
[1744651013347,0.38116851,84202.0,84201.0,0.0060003]
[1744651013669,0.38016851,84202.0,84201.0,0.0060003]
[1744651013869,0.38516851,84202.0,84201.0,3e-07]
[1744651014307,0.38816851,84202.0,84201.0,3e-07]
[1744651015242,0.26732697,84202.0,84201.0,3e-07]
[1744651016064,0.42428697,84202.0,84201.0,3e-07]
[1744651017409,0.41528329,84202.0,84201.0,3e-07]
[1744651017636,0.40294504,84202.0,84201.0,3e-07]
[1744651019749,0.24598504,84202.0,84201.0,3e-07]
[1744651020751,0.24298504,84202.0,84201.0,3e-07]
[1744651021210,0.40194504,84202.0,84201.0,3e-07]
[1744651021931,0.39694504,84202.0,84201.0,3e-07]
[1744651022124,0.39894504,84202.0,84201.0,3e-07]
[1744651022893,0.51978658,84202.0,84201.0,3e-07]
[1744651023052,0.56908658,84202.0,84201.0,3e-07]
[1744651023257,0.56908658,84202.0,84192.0,5e-07]
[1744651023258,0.577549,84193.0,84192.0,5e-07]
[1744651023480,0.69839054,84193.0,84192.0,5e-07]
[1744651024107,0.69839054,84193.0,84190.0,5e-07]
[1744651024108,0.237555,84191.0,84190.0,5e-07]
[1744651024308,0.237574,84184.0,84183.0,7e-07]
[1744651024565,0.51541554,84184.0,84183.0,7e-07]
[1744651024771,0.394574,84184.0,84183.0,7e-07]
[1744651025186,0.237574,84184.0,84183.0,7e-07]
[1744651025388,0.394574,84184.0,84183.0,7e-07]
[1744651025821,0.245574,84184.0,84183.0,0.0010007]
[1744651026050,0.237574,84184.0,84183.0,7e-07]
[1744651026495,0.241574,84184.0,84183.0,7e-07]
[1744651026923,0.242574,84184.0,84183.0,7e-07]
[1744651027400,0.245574,84184.0,84183.0,7e-07]
[1744651030909,0.008,84184.0,84183.0,7e-07]
[1744651031118,0.008,84184.0,84183.0,0.2375777]
[1744651031531,0.008,84184.0,84183.0,0.35841924]
[1744651031805,0.003,84184.0,84183.0,0.35841924]
[1744651032419,1e-06,84184.0,84183.0,0.71296009]
[1744651032633,0.00046104,84202.0,84201.0,0.237526]
[1744651033037,0.00046104,84202.0,84201.0,0.35836754]
[1744651034667,0.00246104,84202.0,84201.0,0.35836754]
[1744651035554,0.00246104,84202.0,84201.0,0.36036754]
[1744651036109,0.00046104,84202.0,84201.0,0.36036754]
[1744651036600,0.00046104,84202.0,84201.0,0.36236754]
[1744651037862,0.00046104,84202.0,84201.0,0.12484154]
[1744651037863,0.23798504,84202.0,84201.0,0.12484154]
[1744651038319,0.23798504,84202.0,84201.0,0.004]
[1744651039468,0.00046104,84202.0,84200.0,0.237529]
[1744651039660,0.237534,84199.0,84195.0,0.237541]
[1744651039883,0.23754,84196.0,84195.0,0.12084154]
[1744651040265,0.249412,84198.0,84195.0,0.12084154]
[1744651040475,0.249408,84200.0,84195.0,0.37025954]
[1744651040682,0.23798604,84202.0,84195.0,0.37025954]
[1744651040683,0.23754,84196.0,84195.0,0.12084154]
[1744651040887,0.249411,84199.0,84196.0,0.011877]
[1744651041122,0.237537,84198.0,84195.0,0.12084154]
[1744651041353,0.249413,84198.0,84195.0,0.35838354]
[1744651041532,0.249413,84198.0,84195.0,0.35938354]
[1744651041731,0.237538,84197.0,84195.0,0.36038354]
[1744651041938,0.011875,84205.0,84196.0,0.011877]
[1744651042236,0.011876,84201.0,84198.0,0.24941]
[1744651042467,0.011876,84198.0,84195.0,0.12284154]
[1744651042642,0.011876,84198.0,84189.0,0.237558]
[1744651042643,0.011877,84195.0,84190.0,0.011877]
[1744651042892,0.011877,84195.0,84190.0,0.13271854]
[1744651043066,0.249426,84195.0,84191.0,0.249432]
[1744651043287,0.237547,84194.0,84191.0,0.249432]
[1744651043488,0.249424,84194.0,84191.0,0.249432]
[1744651043712,0.011877,84194.0,84191.0,0.249432]
[1744651044067,0.249388,84206.0,84200.0,0.237528]
[1744651044393,0.011876,84201.0,84196.0,0.011877]
[1744651044596,0.249405,84201.0,84197.0,0.011876]
[1744651044761,0.237529,84200.0,84197.0,0.011876]
[1744651044959,0.011876,84197.0,84193.0,0.011877]
[1744651045214,0.00046104,84202.0,84200.0,0.237529]
[1744651045430,0.00046104,84202.0,84201.0,0.70074281]
[1744651045603,0.00046104,84202.0,84201.0,0.86966839]
[1744651046426,0.00046104,84202.0,84201.0,0.85512754]
[1744651046800,0.00046104,84202.0,84201.0,0.85712754]
[1744651047061,0.00046104,84202.0,84201.0,0.70036754]
[1744651047807,0.00146104,84202.0,84201.0,0.70036754]
[1744651048207,0.00046104,84202.0,84201.0,0.12284154]
[1744651048405,0.00046104,84202.0,84201.0,0.12484154]
[1744651048697,0.00046104,84202.0,84201.0,0.36236754]
[1744651055134,4e-08,84202.0,84201.0,0.71690839]
[1744651062121,4e-08,84202.0,84201.0,0.62156154]
[1744651062253,4e-08,84202.0,84201.0,0.85908754]
[1744651062479,4e-08,84202.0,84201.0,0.62156154]
[1744651062682,0.23752404,84202.0,84201.0,0.62156154]
[1744651064167,0.23752404,84202.0,84201.0,0.28156154]
[1744651065043,4e-08,84202.0,84201.0,0.51908754]
[1744651065465,4e-08,84202.0,84201.0,0.36236754]
[1744651065669,4e-08,84202.0,84201.0,0.12484154]
[1744651066535,4e-08,84202.0,84201.0,0.36236754]
[1744651066780,4e-08,84202.0,84201.0,0.12484154]
[1744651067018,4e-08,84202.0,84201.0,0.36236754]
[1744651068217,4e-08,84202.0,84201.0,0.12484154]
[1744651068400,0.23752404,84202.0,84201.0,0.12484154]
[1744651068833,4e-08,84202.0,84201.0,0.36236754]
[1744651069993,4e-08,84202.0,84201.0,0.12484154]
[1744651070630,4e-08,84202.0,84201.0,0.36236754]
[1744651070802,4e-08,84202.0,84201.0,0.12484154]
[1744651071003,4e-08,84202.0,84201.0,0.36236754]
[1744651071225,4e-08,84202.0,84201.0,0.37690839]
[1744651071430,4e-08,84202.0,84201.0,0.36236754]
[1744651073347,4e-08,84202.0,84201.0,0.12484154]
[1744651073557,0.23752404,84202.0,84201.0,0.12484154]
[1744651073940,0.28562404,84202.0,84201.0,0.004]
[1744651074786,0.28562404,84202.0,84185.0,0.34]
[1744651074787,0.237569,84186.0,84185.0,0.34]
[1744651074985,0.237567,84187.0,84185.0,0.46084154]
[1744651075202,0.237567,84187.0,84186.0,0.12084154]
[1744651075450,0.237563,84188.0,84186.0,0.13271954]
[1744651076059,0.24944,84189.0,84186.0,0.37028754]
[1744651076270,0.011876,84197.0,84187.0,0.011878]
[1744651076498,0.011877,84192.0,84188.0,0.12084154]
[1744651076879,0.23756,84189.0,84188.0,0.12084154]
[1744651077099,0.011877,84195.0,84188.0,0.13271954]
[1744651077305,0.011876,84201.0,84196.0,0.011877]
[1744651077508,4e-08,84202.0,84199.0,0.249408]
[1744651077714,4e-08,84202.0,84197.0,0.13271754]
[1744651077917,0.237535,84198.0,84197.0,0.12084154]
[1744651078124,0.237535,84198.0,84190.0,0.237556]
[1744651078125,0.011877,84191.0,84188.0,0.25144]
[1744651078324,0.249426,84194.0,84190.0,0.011877]
[1744651078538,0.237551,84193.0,84191.0,0.12084154]
[1744651078731,0.249426,84194.0,84191.0,0.35839554]
[1744651079294,0.249426,84194.0,84192.0,0.237552]
[1744651079498,0.249426,84194.0,84193.0,0.12084154]
[1744651080203,0.237549,84194.0,84193.0,0.12084154]
[1744651080610,0.237542,84196.0,84193.0,0.12084154]
[1744651080811,0.237545,84195.0,84193.0,0.12284154]
[1744651081241,0.237545,84195.0,84193.0,0.36138954]
[1744651081441,0.237545,84195.0,84193.0,0.12384154]
[1744651081643,0.237545,84195.0,84193.0,0.12184154]
[1744651081842,0.237545,84195.0,84193.0,0.12084154]
[1744651082082,0.237545,84195.0,84193.0,0.12284154]
[1744651082370,0.249417,84197.0,84193.0,0.13471854]
[1744651082576,0.011877,84196.0,84193.0,0.12284154]
[1744651082729,0.249416,84197.0,84193.0,0.37226654]
[1744651083130,0.249416,84197.0,84194.0,0.237546]
[1744651083330,0.249416,84197.0,84195.0,0.12084154]
[1744651083715,0.23754,84196.0,84195.0,0.12084154]
[1744651084118,0.249416,84197.0,84195.0,0.12084154]
[1744651084322,0.237534,84199.0,84197.0,0.237537]
[1744651084323,0.24941,84199.0,84197.0,0.237537]
[1744651084521,0.011876,84198.0,84195.0,0.12184154]
[1744651084725,0.23754,84196.0,84195.0,0.12184154]
[1744651085040,0.23754,84196.0,84195.0,0.12284154]
[1744651085387,0.23754,84196.0,84195.0,0.001]
[1744651085751,0.23754,84196.0,84195.0,0.002]
[1744651086321,0.23754,84196.0,84195.0,0.001]
[1744651086599,0.237532,84199.0,84195.0,0.12184154]
[1744651086826,0.237535,84198.0,84196.0,0.37025354]
[1744651087279,0.24940204,84202.0,84198.0,0.011876]
[1744651087490,0.011876,84200.0,84197.0,0.011876]
[1744651087692,0.249406,84200.0,84197.0,0.249414]
[1744651087869,0.249406,84200.0,84196.0,0.37025854]
[1744651088067,0.249406,84200.0,84197.0,0.249413]
[1744651088272,0.249408,84199.0,84196.0,0.37025854]
[1744651088438,0.237535,84198.0,84196.0,0.37025854]
[1744651088652,0.249408,84199.0,84197.0,0.001]
[1744651089072,0.249406,84200.0,84197.0,0.001]
[1744651089273,0.011876,84200.0,84197.0,0.001]
[1744651089478,0.011876,84201.0,84197.0,0.238537]
[1744651089689,0.01187604,84202.0,84200.0,0.237529]
[1744651089894,0.24940104,84202.0,84199.0,0.237531]
[1744651090417,0.23753,84200.0,84198.0,0.249411]
[1744651090620,0.23753,84200.0,84197.0,0.250413]
[1744651090621,0.23753,84200.0,84197.0,0.249413]
[1744651090821,0.011876,84201.0,84199.0,0.237532]
[1744651090978,0.011876,84201.0,84197.0,0.249413]
[1744651090979,0.237532,84199.0,84197.0,0.011876]
[1744651091421,0.249408,84199.0,84196.0,0.12084154]
[1744651091579,0.011877,84193.0,84189.0,0.249437]
[1744651091782,0.011877,84193.0,84190.0,0.12084154]
[1744651091783,0.237553,84192.0,84190.0,0.12084154]
[1744651091986,0.249431,84193.0,84190.0,0.35839754]
[1744651092180,0.249427,84193.0,84190.0,0.37027454]
[1744651092394,0.011877,84195.0,84190.0,0.37027454]
[1744651092707,0.249431,84193.0,84190.0,0.12084154]
[1744651092881,0.237552,84192.0,84190.0,0.12084154]
[1744651093074,0.237552,84192.0,84190.0,0.35839754]
[1744651093270,0.237555,84191.0,84190.0,0.12284154]
[1744651093689,0.237574,84184.0,84183.0,7e-07]
[1744651094998,0.059578,84189.0,84183.0,7e-07]
[1744651094999,0.0477,84189.0,84188.0,0.237563]
[1744651095228,0.0477,84189.0,84186.0,0.011878]
[1744651095424,0.0477,84189.0,84183.0,0.0118787]
[1744651095425,0.011878,84188.0,84183.0,7e-07]
[1744651095623,0.237574,84184.0,84183.0,7e-07]
[1744651096366,0.237574,84184.0,84183.0,0.0040007]
[1744651096773,0.237574,84184.0,84183.0,0.0010007]
[1744651100854,0.282974,84184.0,84183.0,0.0010007]
[1744651101664,0.0454,84184.0,84183.0,0.0010007]
[1744651101939,0.0477,84189.0,84183.0,0.0010007]
[1744651102288,0.0463,84197.0,84195.0,0.237543]
[1744651102507,0.011876,84198.0,84195.0,0.12084154]
[1744651102700,0.011876,84198.0,84188.0,0.011878]
[1744651102701,0.011877,84195.0,84188.0,0.011878]
[1744651102831,0.249412,84198.0,84192.0,0.249426]
[1744651103035,0.0456,84203.0,84194.0,0.011877]
[1744651103267,0.0456,84203.0,84201.0,0.237526]
[1744651103439,0.011875,84208.0,84201.0,0.35836754]
[1744651103778,0.011875,84206.0,84201.0,0.35836754]